[Event "Early-Titled-Tuesday-Blitz-February-06-2024"]
[Site "Chess.com"]
[Date "2024.02.06"]
[Round "11"]
[White "Alexchess1984"]
[Black "DarZay"]
[Result "1-0"]
[WhiteElo "2640"]
[BlackElo "2298"]
[TimeControl "180+1"]
[EndTime "10:02:34 PST"]
[Termination "Alexchess1984 won by resignation"]

1. e4 {[%clk 0:03:00.9]} 1... c5 {[%clk 0:02:59.5]} 2. Nf3 {[%clk 0:03:00.7]}
2... Nc6 {[%clk 0:02:59.5]} 3. Bb5 {[%clk 0:02:56.6]} 3... g6 {[%clk 0:02:58.5]}
4. Bxc6 {[%clk 0:02:55.8]} 4... dxc6 {[%clk 0:02:58.1]} 5. O-O {[%clk
0:02:55.8]} 5... Bg7 {[%clk 0:02:58]} 6. Nc3 {[%clk 0:02:56]} 6... e5 {[%clk
0:02:50.4]} 7. h3 {[%clk 0:02:55.1]} 7... Qd6 {[%clk 0:02:38]} 8. d3 {[%clk
0:02:54.3]} 8... Nf6 {[%clk 0:02:36.4]} 9. Re1 {[%clk 0:02:52.8]} 9... O-O
{[%clk 0:02:35.5]} 10. b3 {[%clk 0:02:51.1]} 10... Re8 {[%clk 0:02:34.7]} 11. a4
{[%clk 0:02:50.5]} 11... b6 {[%clk 0:02:32.6]} 12. Nd2 {[%clk 0:02:49.8]} 12...
Nd7 {[%clk 0:02:31.5]} 13. Nc4 {[%clk 0:02:49.6]} 13... Qc7 {[%clk 0:02:31.8]}
14. Be3 {[%clk 0:02:39.4]} 14... Nf8 {[%clk 0:02:31]} 15. Qd2 {[%clk 0:02:38.2]}
15... Ne6 {[%clk 0:02:30.5]} 16. Bh6 {[%clk 0:02:36.8]} 16... Nd4 {[%clk
0:02:28.8]} 17. Bxg7 {[%clk 0:02:35.1]} 17... Kxg7 {[%clk 0:02:29]} 18. Ne3
{[%clk 0:02:32.7]} 18... Be6 {[%clk 0:02:27.1]} 19. Rac1 {[%clk 0:02:30.2]}
19... Qe7 {[%clk 0:02:23]} 20. Ne2 {[%clk 0:02:28.9]} 20... Qh4 {[%clk
0:02:17.3]} 21. Nxd4 {[%clk 0:02:16.4]} 21... cxd4 {[%clk 0:02:15.4]} 22. Nf1
{[%clk 0:02:17]} 22... f5 {[%clk 0:02:06.9]} 23. exf5 {[%clk 0:02:10.1]} 23...
Bxf5 {[%clk 0:02:07.2]} 24. Ng3 {[%clk 0:02:08.7]} 24... Rad8 {[%clk 0:01:57.2]}
25. Re2 {[%clk 0:02:02.9]} 25... Kf6 {[%clk 0:01:51.7]} 26. Rce1 {[%clk
0:02:01.8]} 26... Qf4 {[%clk 0:01:51.1]} 27. Qxf4 {[%clk 0:01:59.9]} 27... exf4
{[%clk 0:01:51.4]} 28. Rxe8 {[%clk 0:02:00.3]} 1-0

[Event "Early-Titled-Tuesday-Blitz-February-06-2024"]
[Site "Chess.com"]
[Date "2024.02.06"]
[Round "11"]
[White "traviscottofficial"]
[Black "NastyaHn"]
[Result "1-0"]
[WhiteElo "2677"]
[BlackElo "2365"]
[TimeControl "180+1"]
[EndTime "10:02:51 PST"]
[Termination "traviscottofficial won by resignation"]

1. Na3 {[%clk 0:03:00.9]} 1... d5 {[%clk 0:02:59.2]} 2. c3 {[%clk 0:03:00.9]}
2... e5 {[%clk 0:02:59]} 3. Nc2 {[%clk 0:03:01.2]} 3... Nf6 {[%clk 0:02:57.2]}
4. d4 {[%clk 0:03:02.1]} 4... e4 {[%clk 0:02:57.2]} 5. Bf4 {[%clk 0:03:02.6]}
5... Bd6 {[%clk 0:02:56.9]} 6. Bxd6 {[%clk 0:03:02.4]} 6... Qxd6 {[%clk
0:02:57.6]} 7. e3 {[%clk 0:03:03.1]} 7... O-O {[%clk 0:02:57.7]} 8. c4 {[%clk
0:03:03.8]} 8... c6 {[%clk 0:02:57.8]} 9. Rc1 {[%clk 0:03:03.9]} 9... Be6 {[%clk
0:02:57.6]} 10. Qd2 {[%clk 0:03:04.4]} 10... Nfd7 {[%clk 0:02:57.3]} 11. Qb4
{[%clk 0:03:04.6]} 11... Qxb4+ {[%clk 0:02:51.3]} 12. Nxb4 {[%clk 0:03:05.5]}
12... a5 {[%clk 0:02:51.5]} 13. cxd5 {[%clk 0:03:04]} 13... cxd5 {[%clk
0:02:48.4]} 14. Nc2 {[%clk 0:03:03.1]} 14... Rc8 {[%clk 0:02:48]} 15. Kd2 {[%clk
0:03:00.2]} 15... Na6 {[%clk 0:02:48.1]} 16. Bb5 {[%clk 0:02:58.9]} 16... Nb6
{[%clk 0:02:46.6]} 17. Bxa6 {[%clk 0:02:48.6]} 17... Rxa6 {[%clk 0:02:43.3]} 18.
b3 {[%clk 0:02:49.2]} 18... a4 {[%clk 0:02:43.2]} 19. Nb4 {[%clk 0:02:47.5]}
19... Raa8 {[%clk 0:02:42.5]} 20. Rxc8+ {[%clk 0:02:46]} 20... Rxc8 {[%clk
0:02:30.5]} 21. Ne2 {[%clk 0:02:45.7]} 21... axb3 {[%clk 0:02:29.9]} 22. axb3
{[%clk 0:02:45.1]} 22... Kf8 {[%clk 0:02:22]} 23. Nc3 {[%clk 0:02:40.4]} 23...
Ke7 {[%clk 0:02:20.9]} 24. Ra1 {[%clk 0:02:40.2]} 24... Kd6 {[%clk 0:02:14.6]}
25. Nb5+ {[%clk 0:02:37.7]} 25... Kd7 {[%clk 0:02:11.7]} 26. Ra7 {[%clk
0:02:37.9]} 26... Ke7 {[%clk 0:01:51.4]} 27. Rxb7+ {[%clk 0:02:35.8]} 27... Nd7
{[%clk 0:01:51.5]} 28. Nc7 {[%clk 0:02:32.2]} 28... Kd6 {[%clk 0:01:32]} 29.
Ncxd5 {[%clk 0:02:31.4]} 29... Bxd5 {[%clk 0:01:30.7]} 30. Nxd5 {[%clk
0:02:32.1]} 30... Kc6 {[%clk 0:01:16.6]} 31. Rxd7 {[%clk 0:02:28.4]} 31... Kxd7
{[%clk 0:01:15.5]} 32. Nb6+ {[%clk 0:02:29]} 1-0

[Event "Early-Titled-Tuesday-Blitz-February-06-2024"]
[Site "Chess.com"]
[Date "2024.02.06"]
[Round "11"]
[White "MatthewG-p4p"]
[Black "GothamChess"]
[Result "1-0"]
[WhiteElo "2822"]
[BlackElo "2698"]
[TimeControl "180+1"]
[EndTime "10:02:54 PST"]
[Termination "MatthewG-p4p won by resignation"]

1. e4 {[%clk 0:03:00.9]} 1... e6 {[%clk 0:03:00.2]} 2. d4 {[%clk 0:02:47.8]}
2... d5 {[%clk 0:03:00.3]} 3. e5 {[%clk 0:02:48.5]} 3... Bd7 {[%clk 0:03:00.1]}
4. Nf3 {[%clk 0:02:48.2]} 4... a6 {[%clk 0:03:00.1]} 5. Be2 {[%clk 0:02:43.4]}
5... Bb5 {[%clk 0:02:58.4]} 6. Nc3 {[%clk 0:02:44]} 6... Bxe2 {[%clk 0:02:57.6]}
7. Nxe2 {[%clk 0:02:44.9]} 7... c5 {[%clk 0:02:56.5]} 8. c3 {[%clk 0:02:44.7]}
8... Nc6 {[%clk 0:02:56.9]} 9. O-O {[%clk 0:02:43.7]} 9... Nh6 {[%clk
0:02:55.1]} 10. Nf4 {[%clk 0:02:43.1]} 10... Nf5 {[%clk 0:02:51.7]} 11. dxc5
{[%clk 0:02:30.8]} 11... Bxc5 {[%clk 0:02:52.6]} 12. Nh5 {[%clk 0:02:30.2]}
12... O-O {[%clk 0:02:42.9]} 13. b4 {[%clk 0:02:16.3]} 13... Be7 {[%clk
0:02:41]} 14. a3 {[%clk 0:02:16.6]} 14... Qc7 {[%clk 0:02:34.3]} 15. Bf4 {[%clk
0:02:14.6]} 15... Na7 {[%clk 0:02:21.9]} 16. g4 {[%clk 0:01:55.5]} 16... Nh4
{[%clk 0:02:18.9]} 17. Nxh4 {[%clk 0:01:55.5]} 17... Bxh4 {[%clk 0:02:19.8]} 18.
g5 {[%clk 0:01:56.3]} 18... Bxg5 {[%clk 0:01:37.6]} 19. Bxg5 {[%clk 0:01:54.9]}
19... Qxe5 {[%clk 0:01:38.2]} 20. Qg4 {[%clk 0:01:52.7]} 20... Kh8 {[%clk
0:01:36.3]} 21. Bf6 {[%clk 0:01:45.5]} 21... Qxf6 {[%clk 0:01:30.9]} 22. Nxf6
{[%clk 0:01:44.3]} 22... gxf6 {[%clk 0:01:31.3]} 1-0

[Event "Early-Titled-Tuesday-Blitz-February-06-2024"]
[Site "Chess.com"]
[Date "2024.02.06"]
[Round "11"]
[White "ScofieldMichael01"]
[Black "bogcsab"]
[Result "1-0"]
[WhiteElo "2624"]
[BlackElo "2498"]
[TimeControl "180+1"]
[EndTime "10:03:06 PST"]
[Termination "ScofieldMichael01 won by checkmate"]

1. d4 {[%clk 0:03:00]} 1... Nf6 {[%clk 0:02:59.5]} 2. Nf3 {[%clk 0:02:59.2]}
2... g6 {[%clk 0:03:00]} 3. b3 {[%clk 0:02:58.6]} 3... Bg7 {[%clk 0:03:00.5]} 4.
Bb2 {[%clk 0:02:59.5]} 4... O-O {[%clk 0:03:01]} 5. g3 {[%clk 0:03:00.2]} 5...
d6 {[%clk 0:03:01.6]} 6. Bg2 {[%clk 0:03:00.8]} 6... Nbd7 {[%clk 0:03:02.3]} 7.
O-O {[%clk 0:03:01.1]} 7... Qe8 {[%clk 0:03:02.8]} 8. c4 {[%clk 0:02:59.4]} 8...
e5 {[%clk 0:03:03.2]} 9. Nc3 {[%clk 0:02:59.2]} 9... c6 {[%clk 0:03:02.5]} 10.
e4 {[%clk 0:02:57.1]} 10... Qe7 {[%clk 0:03:01.8]} 11. Qc2 {[%clk 0:02:55.6]}
11... Ne8 {[%clk 0:03:01.7]} 12. Rad1 {[%clk 0:02:55.1]} 12... f5 {[%clk
0:03:01.7]} 13. exf5 {[%clk 0:02:54.1]} 13... gxf5 {[%clk 0:03:01.6]} 14. dxe5
{[%clk 0:02:54.8]} 14... dxe5 {[%clk 0:03:01.8]} 15. Rfe1 {[%clk 0:02:52.8]}
15... Kh8 {[%clk 0:02:57.8]} 16. Nh4 {[%clk 0:02:41]} 16... Qg5 {[%clk 0:02:52]}
17. Ne2 {[%clk 0:02:03.7]} 17... e4 {[%clk 0:02:48.7]} 18. Nf4 {[%clk 0:02:01]}
18... Ne5 {[%clk 0:02:45.4]} 19. Bc3 {[%clk 0:01:48]} 19... Nc7 {[%clk
0:02:40.3]} 20. Qb2 {[%clk 0:01:47.6]} 20... Qe7 {[%clk 0:02:38.6]} 21. Bxe5
{[%clk 0:01:28.7]} 21... Kg8 {[%clk 0:02:34.1]} 22. Bxg7 {[%clk 0:01:27]} 22...
Qxg7 {[%clk 0:02:33.9]} 23. Qxg7+ {[%clk 0:01:25.8]} 23... Kxg7 {[%clk
0:02:34.2]} 24. f3 {[%clk 0:01:26.5]} 24... Ne6 {[%clk 0:02:27.2]} 25. Nxe6+
{[%clk 0:01:24.2]} 25... Bxe6 {[%clk 0:02:26.5]} 26. fxe4 {[%clk 0:01:25.1]}
26... f4 {[%clk 0:02:26.7]} 27. Nf5+ {[%clk 0:01:22.1]} 27... Kf6 {[%clk
0:02:26.2]} 28. gxf4 {[%clk 0:01:21.5]} 28... Rg8 {[%clk 0:02:25.8]} 29. Ng3
{[%clk 0:01:21.7]} 29... Rg4 {[%clk 0:02:22.9]} 30. e5+ {[%clk 0:01:21.3]} 30...
Ke7 {[%clk 0:02:16.4]} 31. f5 {[%clk 0:01:21.6]} 31... Bf7 {[%clk 0:02:15.1]}
32. f6+ {[%clk 0:01:21.1]} 32... Ke6 {[%clk 0:02:12.5]} 33. Bh3 {[%clk
0:01:20.8]} 33... Rg8 {[%clk 0:02:12.5]} 34. Bxg4+ {[%clk 0:01:20.8]} 34... Rxg4
{[%clk 0:02:12.3]} 35. Rd6# {[%clk 0:01:21.4]} 1-0

[Event "Early-Titled-Tuesday-Blitz-February-06-2024"]
[Site "Chess.com"]
[Date "2024.02.06"]
[Round "11"]
[White "Der_Balak_3Halak"]
[Black "bylavochka"]
[Result "1-0"]
[WhiteElo "2515"]
[BlackElo "2334"]
[TimeControl "180+1"]
[EndTime "10:03:17 PST"]
[Termination "Der_Balak_3Halak won by checkmate"]

1. e4 {[%clk 0:03:00.9]} 1... c6 {[%clk 0:02:59.1]} 2. Nf3 {[%clk 0:02:59.6]}
2... d6 {[%clk 0:02:58.1]} 3. d4 {[%clk 0:02:59.2]} 3... g6 {[%clk 0:02:58.4]}
4. Bc4 {[%clk 0:02:57.4]} 4... Bg7 {[%clk 0:02:58.7]} 5. c3 {[%clk 0:02:57.5]}
5... Nd7 {[%clk 0:02:58.5]} 6. Be3 {[%clk 0:02:57.7]} 6... a5 {[%clk 0:02:53.6]}
7. Nbd2 {[%clk 0:02:54.2]} 7... b5 {[%clk 0:02:53.7]} 8. Bxf7+ {[%clk
0:02:49.9]} 8... Kxf7 {[%clk 0:02:48.1]} 9. Ng5+ {[%clk 0:02:50.3]} 9... Ke8
{[%clk 0:02:34.6]} 10. Ne6 {[%clk 0:02:45]} 10... Qb6 {[%clk 0:02:34.1]} 11. d5
{[%clk 0:02:45.4]} 11... Qb7 {[%clk 0:02:34.2]} 12. Nxg7+ {[%clk 0:02:43.1]}
12... Kf7 {[%clk 0:02:34.4]} 13. Ne6 {[%clk 0:02:43.9]} 13... cxd5 {[%clk
0:02:34.4]} 14. Nd8+ {[%clk 0:02:43.1]} 14... Ke8 {[%clk 0:02:21.9]} 15. Nxb7
{[%clk 0:02:44]} 15... Bxb7 {[%clk 0:02:22.5]} 16. exd5 {[%clk 0:02:42.4]} 16...
Bxd5 {[%clk 0:02:23.4]} 17. Nf3 {[%clk 0:02:42.3]} 17... Ngf6 {[%clk 0:02:18.7]}
18. O-O {[%clk 0:02:40]} 18... Rf8 {[%clk 0:02:04.5]} 19. Bh6 {[%clk 0:02:39.4]}
19... Rf7 {[%clk 0:02:04.6]} 20. Ng5 {[%clk 0:02:39.2]} 20... Rc8 {[%clk
0:02:00.9]} 21. Re1 {[%clk 0:02:37.8]} 21... Rc4 {[%clk 0:01:58.8]} 22. f3
{[%clk 0:02:35.2]} 22... Ne5 {[%clk 0:01:50.4]} 23. Qe2 {[%clk 0:02:32.3]} 23...
Nh5 {[%clk 0:01:16]} 24. Nxf7 {[%clk 0:02:30.1]} 24... Kxf7 {[%clk 0:01:09.7]}
25. f4 {[%clk 0:02:30.3]} 25... Nc6 {[%clk 0:00:51.3]} 26. Rad1 {[%clk 0:02:29]}
26... e6 {[%clk 0:00:42]} 27. Rxd5 {[%clk 0:02:27.5]} 27... exd5 {[%clk
0:00:41.7]} 28. Qe8+ {[%clk 0:02:27.3]} 28... Kf6 {[%clk 0:00:41.3]} 29. Qe6#
{[%clk 0:02:26.5]} 1-0

[Event "Early-Titled-Tuesday-Blitz-February-06-2024"]
[Site "Chess.com"]
[Date "2024.02.06"]
[Round "11"]
[White "HelvertHernandez"]
[Black "alvarorodriguezavila"]
[Result "0-1"]
[WhiteElo "1958"]
[BlackElo "2372"]
[TimeControl "180+1"]
[EndTime "10:03:19 PST"]
[Termination "alvarorodriguezavila won by resignation"]

1. e4 {[%clk 0:03:00.9]} 1... d5 {[%clk 0:02:58.7]} 2. exd5 {[%clk 0:03:00.1]}
2... c6 {[%clk 0:02:59.4]} 3. dxc6 {[%clk 0:02:59.3]} 3... Nxc6 {[%clk 0:03:00]}
4. Nf3 {[%clk 0:02:58.8]} 4... e5 {[%clk 0:03:00.6]} 5. Bb5 {[%clk 0:02:53.9]}
5... e4 {[%clk 0:03:00.7]} 6. Ne5 {[%clk 0:02:51.1]} 6... Qd5 {[%clk 0:03:00]}
7. Nxc6 {[%clk 0:02:44.8]} 7... Qxb5 {[%clk 0:02:57]} 8. Nd4 {[%clk 0:02:42.6]}
8... Qd5 {[%clk 0:02:53.4]} 9. c3 {[%clk 0:02:38.8]} 9... Bc5 {[%clk 0:02:47.6]}
10. Nb3 {[%clk 0:02:36.4]} 10... Bb6 {[%clk 0:02:44.7]} 11. Qe2 {[%clk
0:02:35.3]} 11... Nf6 {[%clk 0:02:41.4]} 12. O-O {[%clk 0:02:33.4]} 12... O-O
{[%clk 0:02:41.9]} 13. Rd1 {[%clk 0:02:19.4]} 13... Bg4 {[%clk 0:02:40.7]} 14.
Qf1 {[%clk 0:02:15.2]} 14... Bxd1 {[%clk 0:02:39.2]} 15. Qxd1 {[%clk 0:02:14.8]}
15... Ng4 {[%clk 0:02:36.2]} 16. Qxg4 {[%clk 0:02:03.9]} 16... f5 {[%clk
0:02:36.6]} 17. Qe2 {[%clk 0:02:01.3]} 17... Rae8 {[%clk 0:02:33.5]} 18. d4
{[%clk 0:01:36.4]} 18... exd3 {[%clk 0:02:27]} 19. Qf1 {[%clk 0:01:36]} 19... f4
{[%clk 0:02:23.1]} 20. N1d2 {[%clk 0:01:32.8]} 20... Re2 {[%clk 0:02:23.7]} 21.
c4 {[%clk 0:01:17]} 21... Qh5 {[%clk 0:02:24]} 22. Kh1 {[%clk 0:01:07.2]} 22...
Rxf2 {[%clk 0:02:23.1]} 23. Qxd3 {[%clk 0:01:04.7]} 23... Rd8 {[%clk 0:02:18.6]}
24. Qh3 {[%clk 0:00:56.1]} 24... Qd1+ {[%clk 0:02:16.5]} 0-1

[Event "Early-Titled-Tuesday-Blitz-February-06-2024"]
[Site "Chess.com"]
[Date "2024.02.06"]
[Round "11"]
[White "tetrix83"]
[Black "Alen_Yeremyann"]
[Result "0-1"]
[WhiteElo "2583"]
[BlackElo "2724"]
[TimeControl "180+1"]
[EndTime "10:03:26 PST"]
[Termination "Alen_Yeremyann won by resignation"]

1. e4 {[%clk 0:03:00.9]} 1... Nf6 {[%clk 0:02:58.9]} 2. e5 {[%clk 0:02:56.1]}
2... Nd5 {[%clk 0:02:58.9]} 3. d4 {[%clk 0:02:55.8]} 3... d6 {[%clk 0:02:58.3]}
4. c4 {[%clk 0:02:56.4]} 4... Nb6 {[%clk 0:02:57.7]} 5. exd6 {[%clk 0:02:57.3]}
5... cxd6 {[%clk 0:02:58.1]} 6. Nc3 {[%clk 0:02:57.1]} 6... g6 {[%clk
0:02:58.7]} 7. Be3 {[%clk 0:02:56.7]} 7... Bg7 {[%clk 0:02:57.5]} 8. Rc1 {[%clk
0:02:57.3]} 8... O-O {[%clk 0:02:57]} 9. b3 {[%clk 0:02:57.4]} 9... Bf5 {[%clk
0:02:57.6]} 10. Be2 {[%clk 0:02:54.6]} 10... d5 {[%clk 0:02:57]} 11. c5 {[%clk
0:02:51.3]} 11... Nc8 {[%clk 0:02:57.2]} 12. Nf3 {[%clk 0:02:49.5]} 12... Bg4
{[%clk 0:02:56.6]} 13. O-O {[%clk 0:02:44.9]} 13... Bxf3 {[%clk 0:02:56.5]} 14.
Bxf3 {[%clk 0:02:45]} 14... e6 {[%clk 0:02:57.4]} 15. Bf4 {[%clk 0:02:40]} 15...
Nc6 {[%clk 0:02:57.5]} 16. Ne2 {[%clk 0:02:33.8]} 16... N8e7 {[%clk 0:02:57.8]}
17. Bd6 {[%clk 0:02:24.9]} 17... Re8 {[%clk 0:02:56.6]} 18. g4 {[%clk
0:02:19.2]} 18... Nc8 {[%clk 0:02:51.9]} 19. Bg3 {[%clk 0:02:17.4]} 19... a5
{[%clk 0:02:52.5]} 20. Qd2 {[%clk 0:02:16.4]} 20... N8a7 {[%clk 0:02:52.9]} 21.
a4 {[%clk 0:02:11]} 21... Nb4 {[%clk 0:02:52.5]} 22. Rfd1 {[%clk 0:02:01.9]}
22... Nac6 {[%clk 0:02:49.6]} 23. Bd6 {[%clk 0:01:57.9]} 23... Qf6 {[%clk
0:02:44]} 24. Qe3 {[%clk 0:01:56.3]} 24... e5 {[%clk 0:02:41.4]} 25. dxe5 {[%clk
0:01:44.7]} 25... Nxe5 {[%clk 0:02:42.3]} 26. Bxe5 {[%clk 0:01:42.4]} 26... Rxe5
{[%clk 0:02:36.3]} 27. Qf4 {[%clk 0:01:42.3]} 27... Qxf4 {[%clk 0:02:32.1]} 28.
Nxf4 {[%clk 0:01:41.6]} 28... Bh6 {[%clk 0:02:33]} 29. Nxd5 {[%clk 0:01:29.3]}
29... Nxd5 {[%clk 0:02:05.7]} 30. Bxd5 {[%clk 0:01:27.8]} 30... Rxd5 {[%clk
0:02:05.7]} 31. Rxd5 {[%clk 0:01:21.4]} 31... Bxc1 {[%clk 0:02:06.2]} 32. Rd7
{[%clk 0:01:20.3]} 32... Ba3 {[%clk 0:02:05.2]} 0-1

[Event "Early-Titled-Tuesday-Blitz-February-06-2024"]
[Site "Chess.com"]
[Date "2024.02.06"]
[Round "11"]
[White "maciek_92"]
[Black "Huragan007"]
[Result "1-0"]
[WhiteElo "2792"]
[BlackElo "2607"]
[TimeControl "180+1"]
[EndTime "10:03:36 PST"]
[Termination "maciek_92 won by checkmate"]

1. c4 {[%clk 0:03:00.9]} 1... Nf6 {[%clk 0:02:58.5]} 2. Nc3 {[%clk 0:03:01.6]}
2... g6 {[%clk 0:02:58.3]} 3. g3 {[%clk 0:03:02.2]} 3... Bg7 {[%clk 0:02:58.8]}
4. Bg2 {[%clk 0:03:03.1]} 4... d6 {[%clk 0:02:59.3]} 5. e3 {[%clk 0:03:03.7]}
5... e5 {[%clk 0:02:59.5]} 6. Nge2 {[%clk 0:03:04.3]} 6... O-O {[%clk
0:02:59.9]} 7. d4 {[%clk 0:03:04.9]} 7... Nbd7 {[%clk 0:02:54.6]} 8. O-O {[%clk
0:03:05.5]} 8... c6 {[%clk 0:02:43.4]} 9. h3 {[%clk 0:03:00.2]} 9... Qe7 {[%clk
0:02:37.4]} 10. b3 {[%clk 0:03:00]} 10... h5 {[%clk 0:02:25.9]} 11. a4 {[%clk
0:03:00.2]} 11... a5 {[%clk 0:02:22.4]} 12. Ba3 {[%clk 0:02:59.9]} 12... Ne8
{[%clk 0:02:11.7]} 13. dxe5 {[%clk 0:02:58.6]} 13... Bxe5 {[%clk 0:02:04.9]} 14.
Rc1 {[%clk 0:02:59.3]} 14... Nc5 {[%clk 0:01:50.4]} 15. Nd4 {[%clk 0:02:59.2]}
15... Nc7 {[%clk 0:01:34.2]} 16. Re1 {[%clk 0:02:59.5]} 16... N7e6 {[%clk
0:01:30.2]} 17. f4 {[%clk 0:02:56.9]} 17... Bg7 {[%clk 0:01:28.2]} 18. Kh2
{[%clk 0:02:56]} 18... Bd7 {[%clk 0:01:21.6]} 19. Nde2 {[%clk 0:02:50.6]} 19...
f5 {[%clk 0:01:18.7]} 20. e4 {[%clk 0:02:50.2]} 20... fxe4 {[%clk 0:01:12.9]}
21. Nxe4 {[%clk 0:02:51.1]} 21... Nxe4 {[%clk 0:01:00.4]} 22. Bxe4 {[%clk
0:02:52]} 22... c5 {[%clk 0:00:36]} 23. Bxg6 {[%clk 0:02:49.9]} 23... h4 {[%clk
0:00:36.3]} 24. f5 {[%clk 0:02:50.4]} 24... Ng5 {[%clk 0:00:12.7]} 25. Nf4
{[%clk 0:02:49.8]} 25... Qf6 {[%clk 0:00:09.1]} 26. Qh5 {[%clk 0:02:49.8]} 26...
hxg3+ {[%clk 0:00:05.2]} 27. Kxg3 {[%clk 0:02:50.7]} 27... Be8 {[%clk
0:00:04.3]} 28. h4 {[%clk 0:02:51]} 28... Bxg6 {[%clk 0:00:04.6]} 29. Nxg6
{[%clk 0:02:49.8]} 29... Qxf5 {[%clk 0:00:02.5]} 30. Ne7# {[%clk 0:02:49.9]} 1-0

[Event "Early-Titled-Tuesday-Blitz-February-06-2024"]
[Site "Chess.com"]
[Date "2024.02.06"]
[Round "11"]
[White "Talent-OF-Slovenia"]
[Black "wild3000"]
[Result "1-0"]
[WhiteElo "2451"]
[BlackElo "2349"]
[TimeControl "180+1"]
[EndTime "10:03:38 PST"]
[Termination "Talent-OF-Slovenia won by resignation"]

1. e4 {[%clk 0:03:00.9]} 1... a5 {[%clk 0:02:05]} 2. d4 {[%clk 0:02:57.3]} 2...
a4 {[%clk 0:02:05.2]} 3. Bd3 {[%clk 0:02:53.8]} 3... e6 {[%clk 0:02:05.2]} 4.
Nf3 {[%clk 0:02:53.6]} 4... c6 {[%clk 0:02:05.5]} 5. O-O {[%clk 0:02:53.4]} 5...
d5 {[%clk 0:02:05.7]} 6. Nbd2 {[%clk 0:02:53.5]} 6... Nf6 {[%clk 0:02:04]} 7. e5
{[%clk 0:02:53.4]} 7... Nfd7 {[%clk 0:02:04]} 8. c3 {[%clk 0:02:53.8]} 8... b6
{[%clk 0:02:01.5]} 9. Re1 {[%clk 0:02:53.4]} 9... Be7 {[%clk 0:01:58.9]} 10. Nf1
{[%clk 0:02:51.6]} 10... a3 {[%clk 0:01:55]} 11. b3 {[%clk 0:02:47.1]} 11... Bb7
{[%clk 0:01:54.3]} 12. Ng3 {[%clk 0:02:46]} 12... c5 {[%clk 0:01:54.4]} 13. Nh5
{[%clk 0:02:44.3]} 13... g6 {[%clk 0:01:53.2]} 14. Ng7+ {[%clk 0:02:43.7]} 14...
Kf8 {[%clk 0:01:53.5]} 15. Bh6 {[%clk 0:02:43.2]} 15... Kg8 {[%clk 0:01:53.8]}
16. Qd2 {[%clk 0:01:53.3]} 16... Nc6 {[%clk 0:01:46.9]} 17. Ng5 {[%clk
0:01:33.8]} 17... Nf8 {[%clk 0:01:31.9]} 18. Qf4 {[%clk 0:01:24.9]} 18... Bxg5
{[%clk 0:01:23.7]} 19. Bxg5 {[%clk 0:01:23.3]} 19... Kxg7 {[%clk 0:01:18.3]} 20.
Bf6+ {[%clk 0:01:20.7]} 20... Qxf6 {[%clk 0:01:17.1]} 21. exf6+ {[%clk
0:01:20.8]} 21... Kg8 {[%clk 0:01:17]} 22. Qh6 {[%clk 0:01:21.7]} 1-0

[Event "Early-Titled-Tuesday-Blitz-February-06-2024"]
[Site "Chess.com"]
[Date "2024.02.06"]
[Round "11"]
[White "nikitadovbnya2008"]
[Black "PabloZarnicki"]
[Result "0-1"]
[WhiteElo "2327"]
[BlackElo "2644"]
[TimeControl "180+1"]
[EndTime "10:03:43 PST"]
[Termination "PabloZarnicki won by resignation"]

1. e4 {[%clk 0:02:58.2]} 1... e6 {[%clk 0:02:58.4]} 2. d3 {[%clk 0:02:57.1]}
2... d5 {[%clk 0:02:58.7]} 3. Nd2 {[%clk 0:02:58]} 3... Nc6 {[%clk 0:02:56.4]}
4. g3 {[%clk 0:02:56.4]} 4... dxe4 {[%clk 0:02:56.2]} 5. dxe4 {[%clk 0:02:57.3]}
5... e5 {[%clk 0:02:56.8]} 6. Bg2 {[%clk 0:02:57.5]} 6... Nf6 {[%clk 0:02:57.5]}
7. Ngf3 {[%clk 0:02:56.5]} 7... Bc5 {[%clk 0:02:57.5]} 8. O-O {[%clk 0:02:56.2]}
8... O-O {[%clk 0:02:57.6]} 9. c3 {[%clk 0:02:56.3]} 9... a5 {[%clk 0:02:57.9]}
10. Nb3 {[%clk 0:02:56.5]} 10... Bb6 {[%clk 0:02:55]} 11. Qc2 {[%clk 0:02:53.5]}
11... Qe7 {[%clk 0:02:50.2]} 12. Bg5 {[%clk 0:02:52.7]} 12... h6 {[%clk
0:02:49.9]} 13. Bxf6 {[%clk 0:02:45]} 13... Qxf6 {[%clk 0:02:50.8]} 14. Rad1
{[%clk 0:02:44.6]} 14... Bg4 {[%clk 0:02:48.6]} 15. Rd3 {[%clk 0:02:40.1]} 15...
a4 {[%clk 0:02:43.7]} 16. Nbd2 {[%clk 0:02:38.5]} 16... a3 {[%clk 0:02:43.9]}
17. b3 {[%clk 0:02:37.2]} 17... Rad8 {[%clk 0:02:43.2]} 18. Rxd8 {[%clk
0:02:33.9]} 18... Rxd8 {[%clk 0:02:42.7]} 19. h3 {[%clk 0:02:34.6]} 19... Be6
{[%clk 0:02:29.4]} 20. Rd1 {[%clk 0:02:17.8]} 20... g5 {[%clk 0:02:22.2]} 21.
Nf1 {[%clk 0:02:12.2]} 21... Bxh3 {[%clk 0:02:04.7]} 22. Rxd8+ {[%clk
0:02:03.5]} 22... Nxd8 {[%clk 0:02:04.1]} 23. Bxh3 {[%clk 0:01:27.8]} 23... Qxf3
{[%clk 0:02:03.8]} 24. Bf5 {[%clk 0:01:28.4]} 24... Nc6 {[%clk 0:01:43.3]} 25.
b4 {[%clk 0:01:12.1]} 25... Ne7 {[%clk 0:01:39]} 26. Bc8 {[%clk 0:01:12.1]}
26... Nxc8 {[%clk 0:01:38.3]} 27. Qa4 {[%clk 0:01:08.5]} 27... Qxf2+ {[%clk
0:01:36.6]} 0-1